bitfinex-derivatives/quotes_SOLF0:USTF0_20241026
["timestamp","ask_amount","ask_price","bid_price","bid_amount"]
[1729910072063,3.06,163.65,163.63,13.23984887]
[1729910076376,3.06,163.65,163.64,8.46187431]
[1729910083484,3.0598,163.66,163.64,8.46187431]
[1729910083674,3.0598,163.66,163.65,8.46187431]
[1729910083878,4.84,163.75,163.65,8.46187431]
[1729910083879,8.44930775,163.78,163.65,8.46187431]
[1729910084087,8.46187431,163.76,163.7,8.46187431]
[1729910084387,11.57840028,163.76,163.7,8.46187431]
[1729910085372,3.059,163.71,163.7,8.46187431]
[1729910086580,3.0587,163.73,163.7,8.46187431]
[1729910086874,3.0587,163.73,163.72,8.46187431]
[1729910087977,3.0591,163.7,163.69,4.84]
[1729910088683,3.0597,163.67,163.66,8.46187431]
[1729910088981,3.0597,163.67,163.6,2.5081]
[1729910088982,8.46187431,163.67,163.64,4.84]
[1729910089176,8.46187431,163.68,163.64,4.84]
[1729910089386,11.08637431,163.71,163.66,8.46187431]
[1729910090886,11.08637431,163.71,163.65,8.46187431]
[1729910091085,8.46187431,163.68,163.64,4.84]
[1729910091684,3.06,163.65,163.64,4.84]
[1729910092790,3.06,163.65,163.62,13.30187431]
[1729910093091,3.06,163.65,163.62,8.46187431]
[1729910094388,1.2308,163.7,163.62,8.46187431]
[1729910094389,3.0604,163.63,163.62,8.46187431]
[1729910106593,8.46187431,163.69,163.62,8.46187431]
[1729910106793,3.0602,163.64,163.62,8.46187431]
[1729910107004,8.44930775,163.77,163.63,8.46187431]
[1729910107195,22.53148734,163.79,163.73,8.46187431]
[1729910107196,8.46187431,163.79,163.73,8.46187431]
[1729910108409,12.38857431,163.8,163.75,8.46187431]
[1729910109500,3.0579,163.76,163.75,8.46187431]
[1729910110002,3.0581,163.75,163.71,4.84]
[1729910110203,8.46187431,163.77,163.71,4.84]
[1729910110395,3.9267,163.8,163.71,13.30187431]
[1729910110396,8.46187431,163.76,163.71,13.30187431]
[1729910111290,3.0585,163.74,163.71,13.30187431]
[1729910111914,3.0587,163.72,163.71,4.84]
[1729910113492,3.0579,163.76,163.71,13.30187431]
[1729910113694,3.0579,163.76,163.75,8.46187431]
[1729910122299,3.9267,163.8,163.71,4.84]
[1729910122602,12.38857431,163.8,163.73,8.46187431]
[1729910122802,12.38857431,163.8,163.75,8.46187431]
[1729910123107,3.0581,163.76,163.75,8.46187431]
[1729910123796,8.46187431,163.79,163.73,8.46187431]
[1729910123797,3.0582,163.75,163.73,8.46187431]
[1729910125802,3.0583,163.74,163.73,8.46187431]
[1729910129907,1.3351,163.8,163.73,8.46187431]
[1729910130105,3.0576,163.78,163.71,4.84]
[1729910130302,1.3564,163.86,163.71,4.84]
[1729910130303,2.6649,163.86,163.72,2.6543]
[1729910130503,2.6649,163.86,163.82,8.46187431]
[1729910131202,1.3085,163.86,163.82,8.46187431]
[1729910131403,3.0566,163.83,163.82,8.46187431]
[1729910132304,3.0564,163.85,163.82,8.46187431]
[1729910132500,3.0564,163.85,163.84,8.46187431]
[1729910133304,1.3564,163.92,163.84,8.46187431]
[1729910133502,1.2408,163.93,163.81,4.84]
[1729910133503,1.2408,163.93,163.88,8.46187431]
[1729910134003,8.46187431,163.94,163.88,8.46187431]
[1729910134201,1.2214,163.95,163.9,8.46187431]
[1729910134412,3.0551,163.92,163.9,8.46187431]
[1729910134597,1.2214,163.95,163.9,8.46187431]
[1729910135710,3.0547,163.94,163.9,8.46187431]
[1729910135910,1.3275,163.96,163.92,8.46187431]
[1729910136306,3.055,163.92,163.89,13.21163369]
[1729910138112,3.0541,163.97,163.91,13.21163369]
[1729910138307,13.21163369,164.04,163.93,13.21163369]
[1729910138618,13.21163369,164.04,163.94,4.82]
[1729910139012,1.3015,164.03,163.94,4.82]
[1729910140015,3.0544,163.95,163.94,4.82]
[1729910140707,3.0542,163.97,163.94,4.82]
[1729910141109,1.3015,164.03,163.94,4.82]
[1729910141617,3.0534,164.01,163.94,4.82]
[1729910141808,1.3015,164.03,163.94,4.82]
[1729910142715,3.0544,163.95,163.94,4.82]
[1729910144913,3.0551,163.91,163.89,13.21163369]
[1729910145109,1.3015,164.03,163.9,4.82]
[1729910145316,13.21163369,164.02,163.92,13.21163369]
[1729910145710,3.0546,163.95,163.92,13.21163369]
[1729910147019,3.0547,163.94,163.92,13.21163369]
[1729910149522,3.0553,163.9,163.87,13.21163369]
[1729910149725,13.21163369,163.97,163.88,4.82]
[1729910150211,3.0553,163.91,163.88,4.82]
[1729910150916,3.0546,163.94,163.9,13.21163369]
[1729910151115,3.0546,163.94,163.92,13.21163369]
[1729910151323,3.0546,163.94,163.93,4.82]
[1729910154524,3.0546,163.94,163.9,13.21163369]
[1729910154525,3.0551,163.91,163.9,4.82]
[1729910154823,2.5944,163.98,163.9,18.03163369]
[1729910156427,3.0548,163.93,163.9,18.03163369]
[1729910158426,3.0548,163.93,163.92,8.45516597]
[1729910159226,8.45516597,163.96,163.9,4.82]
[1729910159528,3.0551,163.91,163.9,13.27516597]
[1729910160227,3.0543,163.96,163.9,13.27516597]
[1729910160430,2.5944,163.98,163.93,8.45516597]
[1729910162225,3.0548,163.93,163.91,13.27516597]
[1729910163724,8.45516597,163.97,163.91,13.27516597]
[1729910163725,3.0544,163.96,163.91,13.27516597]
[1729910163926,8.45516597,163.97,163.91,13.27516597]
[1729910165231,3.0549,163.92,163.91,13.27516597]
[1729910165533,3.0549,163.92,163.91,4.82]
[1729910166525,3.0549,163.92,163.91,13.27516597]
[1729910166733,8.45516597,163.93,163.84,3.9834]
[1729910166927,2.5944,163.98,163.84,3.9834]
[1729910166928,8.45516597,163.91,163.85,4.82]
[1729910167130,2.5944,163.98,163.86,8.45516597]
[1729910167332,8.45516597,163.91,163.86,8.45516597]
[1729910168229,3.0566,163.83,163.82,6.0833]
[1729910168539,3.0566,163.83,163.82,13.27516597]
[1729910169233,3.0566,163.83,163.77,3.0577]
[1729910169535,8.45516597,163.84,163.78,13.27516597]
[1729910169726,6.1211,163.91,163.77,13.27516597]
[1729910169928,3.0575,163.79,163.77,8.45516597]
[1729910170132,8.45516597,163.82,163.77,8.45516597]
[1729910170334,3.00890327,163.85,163.75,4.82]
[1729910170528,8.45516597,163.81,163.75,13.27516597]
[1729910170831,4.82,163.86,163.73,14.53846597]
[1729910170832,8.45516597,163.79,163.73,14.53846597]
[1729910171132,3.0577,163.78,163.73,14.53846597]
[1729910171330,8.45516597,163.79,163.73,14.53846597]
[1729910172338,3.0579,163.77,163.73,14.53846597]
[1729910173230,8.45516597,163.78,163.68,88.50041766]
[1729910173426,8.45516597,163.78,163.63,59.38]
[1729910173427,3.0588,163.72,163.69,4.82]
[1729910173627,8.45516597,163.75,163.69,13.27516597]
[1729910174034,3.0587,163.72,163.69,13.27516597]
[1729910174235,4.82,163.81,163.69,4.82]
[1729910174436,8.45516597,163.73,163.69,4.82]
[1729910174631,8.45516597,163.73,163.68,8.45516597]
[1729910174839,3.0592,163.69,163.67,4.82]
[1729910175438,4.82,163.76,163.68,8.45516597]
[1729910175743,1.2546,163.82,163.67,4.82]
[1729910175744,8.45516597,163.77,163.67,4.82]
[1729910175937,8.45516597,163.75,163.7,8.45516597]
[1729910176334,3.0587,163.73,163.7,8.45516597]
[1729910178341,3.0587,163.73,163.67,4.82]
[1729910178342,3.0581,163.76,163.71,8.45516597]
[1729910178543,3.0581,163.76,163.73,8.45516597]
[1729910180651,9.07909398,163.82,163.72,4.82]
[1729910180850,3.0585,163.73,163.72,4.82]
[1729910183054,9.07909398,163.82,163.69,8.45516597]
[1729910183248,3.059,163.71,163.68,13.27516597]
[1729910184242,3.059,163.71,163.69,8.45516597]
[1729910186849,3.0587,163.72,163.69,8.45516597]
[1729910187055,3.0587,163.72,163.71,8.45516597]
[1729910189058,3.0587,163.72,163.7,8.45516597]
[1729910189752,3.0584,163.74,163.68,4.82]
[1729910189960,8.45516597,163.76,163.69,8.45516597]
[1729910191754,3.0588,163.72,163.69,8.45516597]
[1729910192259,3.0592,163.7,163.68,4.82]
[1729910192446,8.45516597,163.74,163.68,13.27516597]
[1729910192651,9.07909398,163.82,163.64,3.9171]
[1729910192847,8.45516597,163.72,163.67,8.45516597]
[1729910193548,3.059,163.71,163.67,8.45516597]
[1729910193755,8.45516597,163.72,163.67,8.45516597]
[1729910195060,3.0591,163.7,163.68,8.45516597]
[1729910205361,4.25909398,163.82,163.69,8.45516597]
[1729910205562,4.25909398,163.82,163.73,8.45516597]
[1729910205767,4.25909398,163.82,163.76,8.45516597]
[1729910206066,8.45516597,163.81,163.76,8.45516597]
[1729910206973,3.0577,163.78,163.75,8.45516597]
[1729910207164,8.45516597,163.8,163.75,8.45516597]
[1729910208170,3.0578,163.77,163.75,8.45516597]
[1729910220486,6.0859,163.84,163.75,8.45516597]
[1729910220691,8.45516597,163.82,163.76,8.45516597]
[1729910221078,3.0574,163.79,163.76,8.45516597]
[1729910221279,1.277,163.85,163.78,8.45516597]
[1729910221475,1.354,163.91,163.75,4.82]
[1729910221476,8.45516597,163.86,163.8,8.45516597]
[1729910222280,8.45516597,163.89,163.83,8.45516597]
[1729910222479,3.0561,163.86,163.84,8.45516597]
[1729910222680,8.45516597,163.89,163.83,8.45516597]
[1729910223380,2.5379,163.9,163.85,8.45516597]
[1729910223583,10.99306597,163.9,163.85,8.45516597]
[1729910224091,3.056,163.87,163.85,8.45516597]
[1729910225186,8.45516597,163.86,163.8,4.82]
[1729910225486,8.45516597,163.84,163.8,4.82]
[1729910226190,8.45516597,163.84,163.78,9.81106597]
[1729910226386,8.45516597,163.84,163.78,14.63106597]
[1729910226588,8.45516597,163.84,163.78,13.27516597]
[1729910226893,3.0569,163.82,163.8,8.45516597]
[1729910228382,3.0569,163.82,163.78,18.03231236]
[1729910229887,3.0567,163.83,163.78,18.03231236]
[1729910232987,13.21231236,163.88,163.78,18.03231236]
[1729910233290,3.0568,163.82,163.78,18.03231236]
[1729910235703,3.057,163.81,163.78,18.03231236]
[1729910237397,13.21231236,163.86,163.78,4.82]
[1729910237589,5.55945755,163.9,163.77,3.8368]
[1729910237590,13.21231236,163.84,163.77,3.8368]
[1729910237794,13.21231236,163.84,163.77,6.0784]
[1729910238093,3.0576,163.78,163.77,6.0784]
[1729910238688,13.21231236,163.82,163.73,2.5147]
[1729910238893,3.0583,163.75,163.74,4.8]
[1729910239902,13.21231236,163.8,163.74,4.8]
[1729910240493,3.0585,163.73,163.7,13.21231236]
[1729910240693,13.21231236,163.8,163.71,4.8]
[1729910240903,13.21231236,163.78,163.68,1.2441]
[1729910241200,3.0591,163.7,163.69,4.8]
[1729910242399,2.6952,163.79,163.69,4.8]
[1729910242400,15.90751236,163.79,163.69,4.8]
[1729910243803,15.90751236,163.79,163.7,13.21231236]
[1729910243804,14.56531236,163.79,163.7,13.21231236]
[1729910243992,3.0583,163.74,163.7,13.21231236]
[1729910245990,3.0585,163.73,163.7,13.21231236]
[1729910248293,3.0585,163.73,163.72,8.46426188]
[1729910249504,3.0583,163.74,163.72,8.46426188]
[1729910252910,8.46426188,163.75,163.68,1.2441]
[1729910253102,3.0591,163.7,163.69,4.8]
[1729910254713,3.0591,163.7,163.69,13.26426188]
[1729910257616,3.0589,163.71,163.69,13.26426188]
[1729910259112,3.0585,163.74,163.69,13.26426188]
[1729910259314,8.46426188,163.75,163.69,13.26426188]
[1729910260706,3.059,163.71,163.69,13.26426188]
[1729910261605,4.8,163.77,163.52,18.35]
[1729910261810,8.46426188,163.69,163.64,8.46426188]
[1729910262414,1.2365,163.74,163.61,4.8]
[1729910262415,1.2365,163.74,163.65,8.46426188]
[1729910262717,8.46426188,163.72,163.66,8.46426188]
[1729910262917,8.46426188,163.72,163.66,13.26426188]
[1729910264310,3.0594,163.69,163.66,13.26426188]
[1729910271818,8.46426188,163.7,163.66,4.8]
[1729910272119,3.0596,163.67,163.66,4.8]
[1729910272318,8.46426188,163.7,163.66,4.8]
[1729910273321,3.0596,163.67,163.66,4.8]
[1729910276320,40.90980266,163.87,163.66,13.26426188]
[1729910276521,40.90980266,163.87,163.69,8.46426188]
[1729910276522,8.46426188,163.75,163.69,8.46426188]
[1729910277123,3.0585,163.74,163.69,8.46426188]
[1729910277317,8.46426188,163.75,163.69,8.46426188]
[1729910278323,3.0587,163.72,163.69,8.46426188]
[1729910280130,8.46426188,163.75,163.67,1.3495]
[1729910280326,6.041,163.79,163.66,13.26426188]
[1729910280327,8.46426188,163.7,163.66,13.26426188]
[1729910280534,8.46426188,163.7,163.66,4.8]
[1729910283334,3.0596,163.68,163.66,4.8]
[1729910285331,6.041,163.79,163.66,4.8]
[1729910285529,3.0593,163.69,163.66,4.8]
[1729910288025,8.46426188,163.7,163.66,4.8]
[1729910288233,3.0596,163.67,163.66,4.8]
[1729910288730,3.0595,163.68,163.66,4.8]
[1729910288932,1.241,163.79,163.67,8.46426188]
[1729910289130,1.241,163.79,163.72,8.46426188]
[1729910289436,3.0579,163.77,163.74,8.46426188]
[1729910289939,3.0576,163.78,163.75,8.46426188]
[1729910290327,3.0574,163.79,163.77,8.46426188]
[1729910291142,4.8,163.85,163.75,8.46426188]
[1729910291143,3.0577,163.78,163.75,8.46426188]
[1729910292235,3.0577,163.78,163.72,21.07998284]
[1729910292438,13.22128284,163.82,163.72,18.02128284]
[1729910292641,3.0581,163.75,163.72,4.8]
[1729910294646,13.22128284,163.8,163.73,4.8]
[1729910294842,13.22128284,163.77,163.69,1.2282]
[1729910295145,3.0591,163.7,163.67,1.3509]
[1729910295337,3.0591,163.7,163.68,4.8]
[1729910297752,3.0593,163.69,163.64,16.28138284]
[1729910297945,3.0593,163.69,163.65,4.8]
[1729910299352,3.0593,163.69,163.65,7.86]
[1729910300949,7.10401209,163.79,163.68,3.0593]
[1729910300950,3.9827,163.79,163.68,3.0593]
[1729910301150,17.20398284,163.79,163.69,18.02128284]
[1729910301546,3.0587,163.73,163.69,18.02128284]
[1729910303752,67.89242599,163.89,163.71,13.22128284]
[1729910303958,3.058,163.76,163.71,13.22128284]
[1729910304952,3.0581,163.75,163.7,4.37]
[1729910305153,3.0581,163.75,163.72,13.22128284]
[1729910307556,3.0581,163.75,163.73,4.8]
[1729910312272,3.0581,163.75,163.74,8.46099691]
[1729910313364,8.46099691,163.79,163.73,4.8]
[1729910313578,8.46099691,163.77,163.72,4.8]
[1729910313766,8.46099691,163.76,163.71,4.8]
[1729910314476,8.46099691,163.76,163.72,8.46099691]
[1729910316373,3.0585,163.73,163.72,8.46099691]
[1729910320270,3.0585,163.73,163.71,4.8]
[1729910320474,3.0587,163.72,163.71,4.8]
[1729910320980,3.0587,163.72,163.71,6.33000968]
[1729910321183,3.0587,163.72,163.71,6.33000967]
[1729910321382,3.0587,163.72,163.71,4.8]
[1729910321583,3.0587,163.72,163.71,6.33000519]
[1729910323476,3.0587,163.72,163.71,4.8]
[1729910323970,3.0587,163.72,163.71,6.32999815]
[1729910324576,3.0587,163.72,163.71,4.8]
[1729910325979,8.46099691,163.73,163.69,4.8]
[1729910326192,8.46099691,163.73,163.68,8.46099691]
[1729910326477,4.8,163.8,163.62,1.2601]
[1729910326478,8.46099691,163.72,163.66,8.46099691]
[1729910326679,8.46099691,163.7,163.67,1.53025323]
[1729910326887,8.46099691,163.7,163.66,4.8]
[1729910327490,8.46099691,163.7,163.64,13.24099691]
[1729910327678,8.46099691,163.68,163.65,1.53048171]
[1729910327886,8.46099691,163.68,163.61,2.5851]
[1729910327887,3.0611,163.6,163.55,3.0617]
[1729910328089,8.46099691,163.66,163.59,22.73562833]
[1729910328380,8.46099691,163.66,163.6,3.44655451]
[1729910328684,8.46099691,163.66,163.61,1.53070887]
[1729910328685,3.0607,163.62,163.61,1.53070887]
[1729910329590,8.46099691,163.66,163.61,1.53070887]
[1729910329786,3.0603,163.64,163.59,13.24099691]
[1729910329982,3.0603,163.64,163.6,7.42490359]
[1729910330188,7.8978658,163.72,163.61,9.99175466]
[1729910330380,3.0603,163.64,163.59,18.00618454]
[1729910330575,3.0603,163.64,163.6,7.42409047]
[1729910330782,3.0603,163.64,163.61,1.5307573]
[1729910331087,3.0603,163.64,163.59,18.00618454]
[1729910331293,3.0597,163.67,163.61,16.28688454]
[1729910331479,21.12405034,163.72,163.62,1.53075575]
[1729910331684,18.00618454,163.72,163.63,4.78]
[1729910332087,3.0598,163.67,163.63,4.78]
[1729910332285,18.00618454,163.72,163.63,4.78]
[1729910332984,3.0592,163.7,163.63,4.78]
[1729910333182,18.00618454,163.72,163.63,4.78]
[1729910334284,3.0598,163.66,163.63,4.78]
[1729910337688,13.22618454,163.68,163.58,13.22618454]
[1729910337987,13.22618454,163.68,163.59,8.75990211]
[1729910338191,13.22618454,163.68,163.6,1.53073158]
[1729910338388,13.22618454,163.68,163.59,4.78]
[1729910338586,13.22618454,163.68,163.6,1.53073181]
[1729910338890,13.22618454,163.68,163.59,4.78]
[1729910339091,13.22618454,163.66,163.58,4.78]
[1729910339293,13.22618454,163.66,163.59,1.53082873]
[1729910339596,13.22618454,163.66,163.58,4.78]
[1729910339597,3.0609,163.6,163.58,4.78]
[1729910339897,3.0609,163.6,163.59,1.53082873]
[1729910341288,3.0609,163.6,163.57,4.78]
[1729910341493,3.0609,163.6,163.58,1.53088989]
[1729910341694,3.0609,163.6,163.57,4.78]
[1729910341898,3.0609,163.6,163.58,1.53089077]
[1729910342199,3.0609,163.6,163.57,4.78]
[1729910342398,13.22618454,163.66,163.58,1.53089782]
[1729910342698,13.22618454,163.66,163.57,18.00618454]
[1729910342890,13.22618454,163.66,163.58,1.53088582]
[1729910343092,13.22618454,163.66,163.57,21.06758454]
[1729910343290,13.22618454,163.66,163.58,1.53086231]
[1729910343489,13.22618454,163.66,163.57,21.06758454]
[1729910343691,13.22618454,163.66,163.58,1.53086229]
[1729910343893,13.22618454,163.66,163.57,21.06758454]
[1729910344093,13.22618454,163.66,163.58,1.53085607]
[1729910344293,13.22618454,163.66,163.57,21.06758454]
[1729910344492,13.22618454,163.66,163.58,1.53086875]
[1729910344692,13.22618454,163.66,163.57,21.06758454]
[1729910344899,13.22618454,163.66,163.58,1.53086875]
[1729910345098,13.22618454,163.66,163.57,21.06758454]
[1729910345300,3.0606,163.62,163.58,1.53086876]
[1729910345501,3.0606,163.62,163.57,21.06758454]
[1729910346195,3.0606,163.62,163.58,1.53086876]
[1729910346391,3.0606,163.62,163.57,21.06758454]
[1729910346996,3.78,163.67,163.57,18.00618454]
[1729910347198,4.8,163.73,163.61,13.22618454]
[1729910347401,18.02618454,163.73,163.64,13.22618454]
[1729910347701,18.02618454,163.73,163.65,4.8]
[1729910348405,13.22618454,163.73,163.65,4.8]
[1729910349400,3.0594,163.69,163.65,4.8]
[1729910350395,18.02618454,163.75,163.65,4.8]
[1729910350595,3.0591,163.7,163.65,4.8]
[1729910352600,13.22618454,163.71,163.61,14.56988454]
[1729910352792,13.22618454,163.71,163.62,4.8]
[1729910354001,3.06,163.65,163.62,4.8]
[1729910356396,3.0602,163.64,163.62,4.8]
[1729910359307,3.0603,163.64,163.62,4.8]
[1729910359511,14.56078454,163.71,163.62,4.8]
[1729910360112,3.0601,163.65,163.62,4.8]
[1729910362000,13.22618454,163.75,163.64,13.22618454]
[1729910362405,8.46786403,163.74,163.68,8.46786403]
[1729910362609,3.0592,163.69,163.68,8.46786403]
[1729910364318,3.0592,163.69,163.67,4.78]
[1729910366406,20.60385337,163.76,163.67,4.78]
[1729910366614,3.0585,163.73,163.68,13.23125337]
[1729910367313,3.0585,163.73,163.68,14.56305337]
[1729910370612,3.0585,163.73,163.68,17.62245337]
[1729910370812,3.0585,163.73,163.7,13.23125337]
[1729910371021,3.0585,163.73,163.71,4.78]
[1729910371718,3.0577,163.78,163.71,4.78]
[1729910372019,17.09465337,163.8,163.71,4.78]
[1729910372418,3.0581,163.75,163.71,4.78]
[1729910374511,13.23125337,163.82,163.72,13.23125337]
[1729910374709,13.23125337,163.84,163.74,13.23125337]
[1729910374922,13.23125337,163.85,163.75,4.78]
[1729910375209,3.0575,163.79,163.75,4.78]
[1729910375813,3.964,163.87,163.78,13.23125337]
[1729910376121,8.43909471,163.97,163.83,13.23125337]
[1729910376326,3.0551,163.92,163.85,13.23125337]
[1729910376620,2.5901,163.94,163.85,13.23125337]
[1729910376815,13.23125337,163.93,163.84,4.78]
[1729910378319,3.0557,163.88,163.84,4.78]
[1729910379819,3.1020843,163.95,163.85,13.23125337]
[1729910379820,3.0555,163.9,163.85,13.23125337]
[1729910380015,13.23125337,163.95,163.85,13.23125337]
[1729910381222,3.0555,163.89,163.85,13.23125337]
[1729910382424,13.23125337,163.95,163.85,13.23125337]
[1729910382726,1.2589,163.96,163.87,13.23125337]
[1729910382917,1.2589,163.96,163.88,4.78]
[1729910384222,3.055,163.92,163.88,4.78]
[1729910384922,3.055,163.92,163.89,13.23125337]
[1729910386822,2.6178,163.97,163.89,13.23125337]
[1729910387024,1.3013,164.02,163.91,13.23125337]
[1729910387227,1.3013,164.02,163.93,13.23125337]
[1729910388335,3.0542,163.96,163.93,13.23125337]
[1729910388535,13.23125337,163.98,163.91,4.78]
[1729910389221,3.0542,163.96,163.91,4.78]
[1729910389430,16.27511008,164.0,163.91,4.78]
[1729910389629,3.04385671,164.0,163.92,13.23125337]
[1729910389933,3.0539,163.98,163.92,16.28615337]
[1729910390140,13.23125337,163.97,163.84,4.78]
[1729910390325,3.0544,163.95,163.87,16.28715337]
[1729910390530,13.23125337,163.98,163.87,16.28715337]
[1729910391328,3.0548,163.93,163.87,16.28715337]
[1729910392541,13.23125337,163.98,163.87,13.23125337]
[1729910392736,1.3076,163.99,163.89,13.23125337]
[1729910393043,13.23125337,163.97,163.9,4.76]
[1729910393239,3.0551,163.91,163.9,4.76]
[1729910394541,3.055,163.92,163.9,4.76]
[1729910397342,13.23125337,163.94,163.87,4.76]
[1729910398745,3.0557,163.88,163.87,4.76]
[1729910405949,1.2439,163.96,163.87,4.76]
[1729910405950,1.2439,163.96,163.87,21.04705337]
[1729910406750,1.3076,163.99,163.9,13.23125337]
[1729910406955,1.3076,163.99,163.91,4.76]
[1729910407257,1.3076,163.99,163.92,13.23125337]
[1729910408455,3.054,163.97,163.92,13.23125337]
[1729910410254,3.0536,163.99,163.94,13.23125337]
[1729910410450,1.2667,164.03,163.96,13.23125337]
[1729910410651,1.2839,164.05,163.98,13.23125337]
[1729910410851,1.2839,164.05,163.99,4.76]
[1729910411253,2.5055,164.09,163.99,4.76]
[1729910411463,15.73675337,164.09,163.99,4.76]
[1729910412062,13.23125337,164.04,163.98,4.76]
[1729910412253,13.23125337,164.04,163.97,4.76]
[1729910412452,3.054,163.98,163.96,4.76]
[1729910412749,13.23125337,164.04,163.96,4.76]
[1729910414053,3.054,163.98,163.96,4.76]
[1729910414855,13.23125337,164.04,163.94,13.23125337]
[1729910415053,1.2881,164.03,163.95,4.76]
[1729910415761,3.0542,163.97,163.95,4.76]
[1729910416160,13.23125337,164.02,163.92,13.23125337]
[1729910416361,2.6069,164.02,163.93,4.76]
[1729910416965,3.0544,163.96,163.93,4.76]
[1729910417564,2.6069,164.02,163.9,62.4153]
[1729910417565,3.0547,163.94,163.9,72.59125337]
[1729910417766,3.0547,163.94,163.91,4.76]
[1729910420566,3.0542,163.96,163.92,13.23125337]
[1729910420769,3.0542,163.96,163.94,13.23125337]
[1729910421070,1.3069,164.02,163.95,4.76]
[1729910421369,13.23125337,164.06,163.96,13.23125337]
[1729910422166,13.23125337,164.06,163.95,4.76]
[1729910422363,13.23125337,164.04,163.95,4.76]
[1729910422874,3.0542,163.97,163.95,4.76]
[1729910423061,13.23125337,164.04,163.9,59.36]
[1729910423256,3.0537,163.99,163.92,13.23125337]
[1729910423472,13.23125337,164.02,163.92,13.23125337]
[1729910423769,2.6254,164.01,163.92,13.23125337]
[1729910424269,3.0543,163.96,163.92,13.23125337]
[1729910424662,13.23125337,164.0,163.93,4.76]
[1729910424861,14.48345337,164.0,163.93,4.76]
[1729910426271,3.0546,163.94,163.93,4.76]
[1729910431865,14.48345337,164.0,163.9,13.23125337]
[1729910432080,13.23125337,163.95,163.87,4.76]
[1729910432374,13.23125337,163.93,163.83,13.23125337]
[1729910432574,3.0558,163.88,163.86,4.76]
[1729910434678,3.0555,163.9,163.86,4.76]
[1729910435277,13.23125337,163.98,163.89,13.23125337]
[1729910435475,13.23125337,163.98,163.9,4.76]
[1729910435870,14.48345337,164.0,163.9,4.76]
[1729910436275,14.48345337,164.0,163.9,6.1108]
[1729910438272,3.0544,163.95,163.9,6.1108]
[1729910441381,14.48345337,164.0,163.9,6.1108]
[1729910441583,3.0546,163.94,163.9,6.1108]
[1729910443476,3.0551,163.92,163.9,6.1108]
[1729910446185,14.48345337,164.0,163.9,6.1108]
[1729910446381,3.0551,163.91,163.9,6.1108]
[1729910448375,3.0551,163.91,163.9,14.56571454]
[1729910450686,8.45491454,163.97,163.9,14.56571454]
[1729910450887,1.2522,164.0,163.9,6.1108]
[1729910450888,3.055,163.92,163.9,6.1108]
[1729910452095,3.055,163.92,163.91,8.45491454]
[1729910460198,1.2522,164.0,163.91,8.45491454]
[1729910460400,3.054,163.97,163.96,8.45491454]
[1729910461292,1.2313,164.03,163.96,8.45491454]
[1729910461604,9.68621454,164.03,163.94,4.76]
[1729910461795,8.45491454,164.01,163.95,8.45491454]
[1729910462098,3.0536,164.0,163.95,8.45491454]
[1729910462298,8.45491454,164.01,163.95,8.45491454]
[1729910463301,3.0542,163.97,163.95,8.45491454]
[1729910464696,3.0542,163.96,163.95,8.45491454]
[1729910467704,1.3535,164.04,163.95,8.45491454]
[1729910467899,8.45491454,164.06,164.0,8.45491454]
[1729910468501,3.0531,164.02,164.0,8.45491454]
[1729910469102,1.3368,164.07,164.01,8.45491454]
[1729910469302,3.0528,164.04,164.01,8.45491454]
[1729910469503,1.3368,164.07,164.01,8.45491454]
[1729910470410,3.0529,164.03,164.01,8.45491454]
[1729910471006,3.0527,164.04,164.01,8.45491454]
[1729910471210,3.0527,164.04,164.03,8.45491454]
[1729910471511,3.0527,164.04,164.03,13.21491454]
[1729910472910,3.0521,164.08,164.03,13.21491454]
[1729910473101,8.45491454,164.09,164.03,13.21491454]
[1729910473717,3.0526,164.05,164.03,13.21491454]
[1729910474510,8.45491454,164.06,163.94,0.5052077]
[1729910474705,3.0536,164.0,163.99,8.45491454]
[1729910474910,2.6757,164.1,163.99,8.45491454]
[1729910475109,8.45491454,164.05,163.99,8.45491454]
[1729910475415,3.0533,164.02,163.99,8.45491454]